[Event "Titled Tuesday Blitz March 29 Early 2022"]
[White "Gabdrakhmanov, Azat"]
[Black "Andreikin, Dmitry"]
[WhiteFideId "34189197"]
[BlackFideId "4158814"]
[WhiteElo "2279"]
[BlackElo "2736"]
[Result "0-1"]
[Round "02"]
[TimeControl "180+1"]
[Date "2022.03.29"]
[WhiteClock "0:00:07"]
[BlackClock "0:02:07"]

1. e4 {[%clk 0:03:00]}  c5 {[%clk 0:02:59]} 2. Nf3 {[%clk 0:03:01]}  e6 {[%clk 0:02:58]} 3. d4 {[%clk 0:03:01]}  cxd4 {[%clk 0:02:59]} 4. Nxd4 {[%clk 0:03:02]}  Nc6 {[%clk 0:02:59]} 5. Nc3 {[%clk 0:03:02]}  Qc7 {[%clk 0:02:58]} 6. Be3 {[%clk 0:03:02]}  a6 {[%clk 0:02:57]} 7. Qd2 {[%clk 0:03:01]}  Nf6 {[%clk 0:02:56]} 8. f3 {[%clk 0:03:01]}  b5 {[%clk 0:02:49]} 9. g4 {[%clk 0:02:57]}  Ne5 {[%clk 0:02:45]} 10. g5 {[%clk 0:02:47]}  b4 {[%clk 0:02:45]} 11. Na4 {[%clk 0:02:17]}  Nh5 {[%clk 0:02:39]} 12. O-O-O {[%clk 0:02:10]}  Be7 {[%clk 0:02:35]} 13. b3 {[%clk 0:02:02]}  O-O {[%clk 0:02:34]} 14. f4 {[%clk 0:01:42]}  Ng4 {[%clk 0:02:32]} 15. e5 {[%clk 0:01:26]}  Bb7 {[%clk 0:02:28]} 16. Rg1 {[%clk 0:01:13]}  Nxe3 {[%clk 0:02:28]} 17. Qxe3 {[%clk 0:01:14]}  d6 {[%clk 0:02:28]} 18. Be2 {[%clk 0:00:46]}  Nxf4 {[%clk 0:02:28]} 19. Qxf4 {[%clk 0:00:46]}  dxe5 {[%clk 0:02:29]} 20. Qg3 {[%clk 0:00:42]}  Rac8 {[%clk 0:02:29]} 21. Kb1 {[%clk 0:00:19]}  Rfd8 {[%clk 0:02:22]} 22. g6 {[%clk 0:00:06]}  hxg6 {[%clk 0:02:21]} 23. Nxe6 {[%clk 0:00:06]}  Qxc2+ {[%clk 0:02:18]} 24. Ka1 {[%clk 0:00:06]}  Rxd1+ {[%clk 0:02:15]} 25. Rxd1 {[%clk 0:00:07]}  Bf6 {[%clk 0:02:07]} 0-1


[Site "https://www.chess.com"]

[Event "Titled Tuesday Blitz March 29 Early 2022"]
[White "Garv Gaur"]
[Black "Rustemov, Alexander"]
[WhiteFideId "45030839"]
[BlackFideId "4119002"]
[WhiteElo "1950"]
[BlackElo "2759"]
[Result "0-1"]
[Round "02"]
[TimeControl "180+1"]
[Date "2022.03.29"]
[WhiteClock "0:00:31"]
[BlackClock "0:00:15"]

1. d4 {[%clk 0:03:00]}  d5 {[%clk 0:02:59]} 2. Nf3 {[%clk 0:03:01]}  Nf6 {[%clk 0:02:59]} 3. c4 {[%clk 0:03:01]}  e6 {[%clk 0:02:55]} 4. g3 {[%clk 0:03:01]}  Be7 {[%clk 0:02:54]} 5. Bg2 {[%clk 0:03:01]}  O-O {[%clk 0:02:55]} 6. O-O {[%clk 0:03:02]}  Nbd7 {[%clk 0:02:55]} 7. Nbd2 {[%clk 0:03:00]}  c6 {[%clk 0:02:54]} 8. Qc2 {[%clk 0:03:00]}  b6 {[%clk 0:02:53]} 9. e4 {[%clk 0:03:00]}  Bb7 {[%clk 0:02:52]} 10. e5 {[%clk 0:02:59]}  Ne8 {[%clk 0:02:51]} 11. cxd5 {[%clk 0:02:59]}  cxd5 {[%clk 0:02:50]} 12. Re1 {[%clk 0:03:00]}  Rc8 {[%clk 0:02:49]} 13. Qd1 {[%clk 0:02:56]}  Qc7 {[%clk 0:02:48]} 14. Bf1 {[%clk 0:02:54]}  Qc2 {[%clk 0:02:43]} 15. Qxc2 {[%clk 0:02:50]}  Rxc2 {[%clk 0:02:44]} 16. Bd3 {[%clk 0:02:51]}  Rc8 {[%clk 0:02:42]} 17. Nf1 {[%clk 0:02:52]}  Nc7 {[%clk 0:02:37]} 18. Bd2 {[%clk 0:02:50]}  Ba6 {[%clk 0:02:37]} 19. Bxa6 {[%clk 0:02:48]}  Nxa6 {[%clk 0:02:37]} 20. a3 {[%clk 0:02:49]}  Nab8 {[%clk 0:02:21]} 21. Rac1 {[%clk 0:02:43]}  b5 {[%clk 0:02:04]} 22. Rxc8 {[%clk 0:02:20]}  Rxc8 {[%clk 0:02:03]} 23. Rc1 {[%clk 0:02:21]}  Rxc1 {[%clk 0:02:03]} 24. Bxc1 {[%clk 0:02:22]}  a5 {[%clk 0:01:55]} 25. Bd2 {[%clk 0:02:13]}  a4 {[%clk 0:01:54]} 26. Ne3 {[%clk 0:02:13]}  Nc6 {[%clk 0:01:51]} 27. Kf1 {[%clk 0:02:12]}  Nb6 {[%clk 0:01:47]} 28. Ke2 {[%clk 0:02:12]}  Kf8 {[%clk 0:01:33]} 29. Kd3 {[%clk 0:02:10]}  Ke8 {[%clk 0:01:32]} 30. Ne1 {[%clk 0:02:04]}  h5 {[%clk 0:01:29]} 31. f4 {[%clk 0:02:03]}  g6 {[%clk 0:01:29]} 32. N1c2 {[%clk 0:02:02]}  Kd7 {[%clk 0:01:27]} 33. Be1 {[%clk 0:01:54]}  Bd8 {[%clk 0:01:25]} 34. h4 {[%clk 0:01:54]}  Nc4 {[%clk 0:01:22]} 35. Nxc4 {[%clk 0:01:52]}  dxc4+ {[%clk 0:01:22]} 36. Ke4 {[%clk 0:01:49]}  Ne7 {[%clk 0:01:20]} 37. Ne3 {[%clk 0:01:41]}  Kc6 {[%clk 0:01:21]} 38. Bb4 {[%clk 0:01:40]}  Nd5 {[%clk 0:01:13]} 39. Nxd5 {[%clk 0:01:40]}  exd5+ {[%clk 0:01:13]} 40. Ke3 {[%clk 0:01:40]}  Kd7 {[%clk 0:01:08]} 41. Kf3 {[%clk 0:01:27]}  Ke6 {[%clk 0:01:07]} 42. Ke3 {[%clk 0:01:27]}  Kf5 {[%clk 0:01:07]} 43. Kf3 {[%clk 0:01:27]}  Bb6 {[%clk 0:01:04]} 44. Bc3 {[%clk 0:00:59]}  Ba7 {[%clk 0:01:04]} 45. Ke3 {[%clk 0:00:59]}  Kg4 {[%clk 0:01:03]} 46. Kf2 {[%clk 0:00:59]}  Bb6 {[%clk 0:00:44]} 47. Kg2 {[%clk 0:01:00]}  Bd8 {[%clk 0:00:41]} 48. Kf2 {[%clk 0:00:59]}  f6 {[%clk 0:00:37]} 49. Kg2 {[%clk 0:00:52]}  Be7 {[%clk 0:00:31]} 50. Bd2 {[%clk 0:00:51]}  Kf5 {[%clk 0:00:22]} 51. Kf3 {[%clk 0:00:51]}  fxe5 {[%clk 0:00:21]} 52. fxe5 {[%clk 0:00:51]}  Bf8 {[%clk 0:00:16]} 53. Be3 {[%clk 0:00:47]}  c3 {[%clk 0:00:14]} 54. Bc1 {[%clk 0:00:27]}  cxb2 {[%clk 0:00:12]} 55. Bxb2 {[%clk 0:00:28]}  b4 {[%clk 0:00:13]} 56. Ke3 {[%clk 0:00:20]}  bxa3 {[%clk 0:00:12]} 57. Bc3 {[%clk 0:00:20]}  a2 {[%clk 0:00:11]} 58. Kf3 {[%clk 0:00:20]}  Bb4 {[%clk 0:00:10]} 59. Bb2 {[%clk 0:00:18]}  a3 {[%clk 0:00:09]} 60. Ba1 {[%clk 0:00:19]}  Bd2 {[%clk 0:00:09]} 61. Ke2 {[%clk 0:00:18]}  Bc1 {[%clk 0:00:09]} 62. e6 {[%clk 0:00:17]}  Kxe6 {[%clk 0:00:08]} 63. Kd1 {[%clk 0:00:17]}  Bb2 {[%clk 0:00:09]} 64. Kc2 {[%clk 0:00:17]}  Bxa1 {[%clk 0:00:09]} 65. Kb3 {[%clk 0:00:18]}  Bxd4 {[%clk 0:00:09]} 66. Kxa2 {[%clk 0:00:19]}  Be5 {[%clk 0:00:09]} 67. Kxa3 {[%clk 0:00:20]}  Bxg3 {[%clk 0:00:10]} 68. Kb3 {[%clk 0:00:21]}  Bxh4 {[%clk 0:00:11]} 69. Kc3 {[%clk 0:00:22]}  Bf6+ {[%clk 0:00:11]} 70. Kd3 {[%clk 0:00:22]}  g5 {[%clk 0:00:12]} 71. Ke3 {[%clk 0:00:23]}  h4 {[%clk 0:00:13]} 72. Kf3 {[%clk 0:00:24]}  Kf5 {[%clk 0:00:13]} 73. Kg2 {[%clk 0:00:25]}  g4 {[%clk 0:00:14]} 74. Kh2 {[%clk 0:00:25]}  d4 {[%clk 0:00:14]} 75. Kg2 {[%clk 0:00:26]}  h3+ {[%clk 0:00:14]} 76. Kf2 {[%clk 0:00:27]}  Be5 {[%clk 0:00:15]} 77. Ke2 {[%clk 0:00:27]}  Ke4 {[%clk 0:00:15]} 78. Kd2 {[%clk 0:00:27]}  g3 {[%clk 0:00:16]} 79. Ke2 {[%clk 0:00:27]}  g2 {[%clk 0:00:16]} 80. Kd2 {[%clk 0:00:28]}  g1=Q {[%clk 0:00:16]} 81. Kc2 {[%clk 0:00:29]}  Qg2+ {[%clk 0:00:16]} 82. Kb3 {[%clk 0:00:30]}  h2 {[%clk 0:00:16]} 83. Kc4 {[%clk 0:00:31]}  h1=Q {[%clk 0:00:16]} 84. Kb5 {[%clk 0:00:31]}  Qc2 {[%clk 0:00:15]} 0-1


[Site "https://www.chess.com"]

[Event "Titled Tuesday Blitz March 29 Early 2022"]
[White "Gatterer, Florian"]
[Black "Dronavalli, Harika"]
[WhiteFideId "811688"]
[BlackFideId "5015197"]
[WhiteElo "2218"]
[BlackElo "2382"]
[Result "0-1"]
[Round "02"]
[TimeControl "180+1"]
[Date "2022.03.30"]
[WhiteClock "0:00:06"]
[BlackClock "0:00:27"]

1. b3 {[%clk 0:03:00]}  d6 {[%clk 0:02:57]} 2. Bb2 {[%clk 0:02:56]}  e5 {[%clk 0:02:54]} 3. Nf3 {[%clk 0:02:53]}  c5 {[%clk 0:02:53]} 4. e3 {[%clk 0:02:53]}  Nc6 {[%clk 0:02:52]} 5. d4 {[%clk 0:02:51]}  cxd4 {[%clk 0:02:52]} 6. exd4 {[%clk 0:02:50]}  e4 {[%clk 0:02:52]} 7. Nfd2 {[%clk 0:02:50]}  d5 {[%clk 0:02:52]} 8. Be2 {[%clk 0:02:44]}  f5 {[%clk 0:02:41]} 9. c4 {[%clk 0:02:37]}  Nf6 {[%clk 0:02:41]} 10. O-O {[%clk 0:02:27]}  Bd6 {[%clk 0:02:34]} 11. Nc3 {[%clk 0:02:23]}  O-O {[%clk 0:02:21]} 12. Nxd5 {[%clk 0:02:18]}  Nxd5 {[%clk 0:02:21]} 13. cxd5 {[%clk 0:02:19]}  Ne7 {[%clk 0:02:19]} 14. Nc4 {[%clk 0:02:15]}  Nxd5 {[%clk 0:02:16]} 15. f3 {[%clk 0:01:54]}  e3 {[%clk 0:02:01]} 16. Nxd6 {[%clk 0:01:42]}  Qxd6 {[%clk 0:02:01]} 17. g3 {[%clk 0:01:42]}  f4 {[%clk 0:02:00]} 18. Bc4 {[%clk 0:01:24]}  Be6 {[%clk 0:01:56]} 19. Kg2 {[%clk 0:01:13]}  Rae8 {[%clk 0:01:46]} 20. Qe2 {[%clk 0:01:10]}  a6 {[%clk 0:01:40]} 21. a4 {[%clk 0:01:09]}  Qd7 {[%clk 0:01:40]} 22. g4 {[%clk 0:01:06]}  Rf6 {[%clk 0:01:26]} 23. h3 {[%clk 0:01:02]}  h5 {[%clk 0:01:26]} 24. Kh2 {[%clk 0:00:38]}  Rg6 {[%clk 0:01:04]} 25. Rg1 {[%clk 0:00:30]}  Qe7 {[%clk 0:01:04]} 26. Bxd5 {[%clk 0:00:20]}  Bxd5 {[%clk 0:01:03]} 27. gxh5 {[%clk 0:00:20]}  Rh6 {[%clk 0:00:56]} 28. Rg4 {[%clk 0:00:17]}  Rf8 {[%clk 0:00:57]} 29. Rag1 {[%clk 0:00:16]}  Rf7 {[%clk 0:00:57]} 30. Qg2 {[%clk 0:00:08]}  Rxh5 {[%clk 0:00:52]} 31. Ba3 {[%clk 0:00:09]}  Qf6 {[%clk 0:00:52]} 32. Bd6 {[%clk 0:00:08]}  Qh6 {[%clk 0:00:47]} 33. Be5 {[%clk 0:00:07]}  Be6 {[%clk 0:00:27]} 34. Rxg7+ {[%clk 0:00:07]}  Rxg7 {[%clk 0:00:27]} 35. Qxg7+ {[%clk 0:00:07]}  Qxg7 {[%clk 0:00:28]} 36. Rxg7+ {[%clk 0:00:07]}  Kf8 {[%clk 0:00:28]} 37. Re7 {[%clk 0:00:06]}  Kxe7 {[%clk 0:00:27]} 0-1


[Site "https://www.chess.com"]

[Event "Titled Tuesday Blitz March 29 Early 2022"]
[White "Grebeniuk, Semen"]
[Black "Le, Tuan Minh"]
[WhiteFideId "14117509"]
[BlackFideId "12401153"]
[WhiteElo "2234"]
[BlackElo "2450"]
[Result "0-1"]
[Round "02"]
[TimeControl "180+1"]
[Date "2022.03.29"]
[WhiteClock "0:00:22"]
[BlackClock "0:01:26"]

1. d4 {[%clk 0:02:29]}  d5 {[%clk 0:02:59]} 2. c4 {[%clk 0:02:29]}  c6 {[%clk 0:02:59]} 3. cxd5 {[%clk 0:02:29]}  cxd5 {[%clk 0:02:59]} 4. Bf4 {[%clk 0:02:30]}  Nf6 {[%clk 0:02:59]} 5. e3 {[%clk 0:02:29]}  Nc6 {[%clk 0:02:59]} 6. Bd3 {[%clk 0:02:29]}  Bg4 {[%clk 0:02:59]} 7. f3 {[%clk 0:02:29]}  Bh5 {[%clk 0:02:59]} 8. Ne2 {[%clk 0:02:29]}  e6 {[%clk 0:02:58]} 9. O-O {[%clk 0:02:29]}  Bd6 {[%clk 0:02:59]} 10. Nbc3 {[%clk 0:02:29]}  O-O {[%clk 0:02:58]} 11. Bxd6 {[%clk 0:02:28]}  Qxd6 {[%clk 0:02:59]} 12. Nf4 {[%clk 0:02:29]}  Bg6 {[%clk 0:03:00]} 13. Nxg6 {[%clk 0:02:30]}  hxg6 {[%clk 0:03:01]} 14. Rc1 {[%clk 0:02:30]}  e5 {[%clk 0:02:59]} 15. Bb5 {[%clk 0:02:12]}  exd4 {[%clk 0:02:56]} 16. exd4 {[%clk 0:02:13]}  Ne7 {[%clk 0:02:56]} 17. Qd3 {[%clk 0:02:01]}  Rac8 {[%clk 0:02:45]} 18. Ba4 {[%clk 0:01:59]}  Nf5 {[%clk 0:02:37]} 19. Ne2 {[%clk 0:01:42]}  Rc4 {[%clk 0:02:28]} 20. Bb3 {[%clk 0:01:41]}  Rxc1 {[%clk 0:02:28]} 21. Rxc1 {[%clk 0:01:41]}  Re8 {[%clk 0:02:28]} 22. Nc3 {[%clk 0:01:05]}  Qf4 {[%clk 0:01:53]} 23. Rd1 {[%clk 0:01:03]}  Nh4 {[%clk 0:01:46]} 24. Qd2 {[%clk 0:00:42]}  Qf5 {[%clk 0:01:46]} 25. Re1 {[%clk 0:00:36]}  Rxe1+ {[%clk 0:01:44]} 26. Qxe1 {[%clk 0:00:37]}  Qg5 {[%clk 0:01:45]} 27. Qe2 {[%clk 0:00:24]}  Qc1+ {[%clk 0:01:43]} 28. Kf2 {[%clk 0:00:23]}  Qh1 {[%clk 0:01:26]} 29. Qe5 {[%clk 0:00:23]}  Qxg2+ {[%clk 0:01:26]} 30. Ke1 {[%clk 0:00:22]}  Nxf3+ {[%clk 0:01:26]} 0-1


[Site "https://www.chess.com"]

[Event "Titled Tuesday Blitz March 29 Early 2022"]
[White "Heinemann, Josefine"]
[Black "Weetik, Vjacheslav"]
[WhiteFideId "12900460"]
[BlackFideId "4153472"]
[WhiteElo "2300"]
[BlackElo "2469"]
[Result "0-1"]
[Round "02"]
[TimeControl "180+1"]
[Date "2022.03.30"]
[WhiteClock "0:00:09"]
[BlackClock "0:00:06"]

1. Nf3 {[%clk 0:03:00]}  Nf6 {[%clk 0:02:53]} 2. g3 {[%clk 0:02:59]}  d5 {[%clk 0:02:53]} 3. Bg2 {[%clk 0:02:59]}  Bf5 {[%clk 0:02:53]} 4. O-O {[%clk 0:02:59]}  e6 {[%clk 0:02:54]} 5. d3 {[%clk 0:02:53]}  c6 {[%clk 0:02:53]} 6. Nbd2 {[%clk 0:02:49]}  h6 {[%clk 0:02:52]} 7. Re1 {[%clk 0:02:41]}  Bh7 {[%clk 0:02:50]} 8. e4 {[%clk 0:02:40]}  Be7 {[%clk 0:02:50]} 9. Qe2 {[%clk 0:02:36]}  a5 {[%clk 0:02:48]} 10. c3 {[%clk 0:02:36]}  Na6 {[%clk 0:02:48]} 11. e5 {[%clk 0:02:33]}  Nd7 {[%clk 0:02:46]} 12. h4 {[%clk 0:02:10]}  Nac5 {[%clk 0:02:43]} 13. d4 {[%clk 0:02:07]}  Nd3 {[%clk 0:02:42]} 14. Rf1 {[%clk 0:02:03]}  a4 {[%clk 0:02:17]} 15. c4 {[%clk 0:01:48]}  a3 {[%clk 0:02:12]} 16. bxa3 {[%clk 0:01:31]}  Qa5 {[%clk 0:02:05]} 17. cxd5 {[%clk 0:01:20]}  cxd5 {[%clk 0:02:03]} 18. Nb3 {[%clk 0:01:20]}  Qa6 {[%clk 0:01:48]} 19. Be3 {[%clk 0:01:14]}  O-O {[%clk 0:01:32]} 20. Rfd1 {[%clk 0:01:05]}  Bxa3 {[%clk 0:01:28]} 21. Bf1 {[%clk 0:01:05]}  Nb2 {[%clk 0:01:25]} 22. Qd2 {[%clk 0:00:37]}  Nc4 {[%clk 0:01:15]} 23. Qe1 {[%clk 0:00:27]}  Rfc8 {[%clk 0:01:07]} 24. Nh2 {[%clk 0:00:23]}  Bb2 {[%clk 0:01:00]} 25. Ng4 {[%clk 0:00:22]}  Bxa1 {[%clk 0:00:54]} 26. Rxa1 {[%clk 0:00:23]}  Qa3 {[%clk 0:00:49]} 27. Qe2 {[%clk 0:00:15]}  Qb2 {[%clk 0:00:35]} 28. Qf3 {[%clk 0:00:14]}  Rxa2 {[%clk 0:00:25]} 29. Rxa2 {[%clk 0:00:15]}  Qxa2 {[%clk 0:00:26]} 30. Bxh6 {[%clk 0:00:15]}  Bf5 {[%clk 0:00:20]} 31. Bxg7 {[%clk 0:00:07]}  Kxg7 {[%clk 0:00:20]} 32. Ne3 {[%clk 0:00:08]}  Bh7 {[%clk 0:00:13]} 33. Qg4+ {[%clk 0:00:08]}  Kh8 {[%clk 0:00:12]} 34. Nc5 {[%clk 0:00:08]}  Nxe3 {[%clk 0:00:06]} 35. fxe3 {[%clk 0:00:08]}  Nxc5 {[%clk 0:00:06]} 36. dxc5 {[%clk 0:00:08]}  Qd2 {[%clk 0:00:06]} 37. Qf4 {[%clk 0:00:08]}  Kg8 {[%clk 0:00:03]} 38. Qg5+ {[%clk 0:00:08]}  Kf8 {[%clk 0:00:03]} 39. h5 {[%clk 0:00:07]}  d4 {[%clk 0:00:02]} 40. Qh6+ {[%clk 0:00:06]}  Ke7 {[%clk 0:00:02]} 41. Qxh7 {[%clk 0:00:06]}  Qxe3+ {[%clk 0:00:03]} 42. Kg2 {[%clk 0:00:04]}  Qxe5 {[%clk 0:00:04]} 43. h6 {[%clk 0:00:03]}  Rh8 {[%clk 0:00:02]} 44. Qg7 {[%clk 0:00:04]}  Qxg7 {[%clk 0:00:02]} 45. hxg7 {[%clk 0:00:05]}  Rg8 {[%clk 0:00:03]} 46. Kf3 {[%clk 0:00:05]}  Rxg7 {[%clk 0:00:03]} 47. Bd3 {[%clk 0:00:06]}  Kd7 {[%clk 0:00:04]} 48. Be4 {[%clk 0:00:06]}  Kc7 {[%clk 0:00:04]} 49. c6 {[%clk 0:00:06]}  bxc6 {[%clk 0:00:05]} 50. Bd3 {[%clk 0:00:07]}  c5 {[%clk 0:00:05]} 51. Kf4 {[%clk 0:00:07]}  Kd6 {[%clk 0:00:06]} 52. Kf3 {[%clk 0:00:07]}  f5 {[%clk 0:00:06]} 53. g4 {[%clk 0:00:08]}  Rxg4 {[%clk 0:00:05]} 54. Kf2 {[%clk 0:00:08]}  Ke5 {[%clk 0:00:06]} 55. Bc4 {[%clk 0:00:09]}  Rh4 {[%clk 0:00:06]} 0-1


[Site "https://www.chess.com"]

[Event "Titled Tuesday Blitz March 29 Early 2022"]
[White "Hernandez Jimenez, Alexander Andres"]
[Black "Csonka, Balazs"]
[WhiteFideId "3900452"]
[BlackFideId "742910"]
[WhiteElo "2082"]
[BlackElo "2404"]
[Result "0-1"]
[Round "02"]
[TimeControl "180+1"]
[Date "2022.03.30"]
[WhiteClock "0:00:22"]
[BlackClock "0:00:29"]

1. e4 {[%clk 0:03:00]}  e5 {[%clk 0:02:57]} 2. Nf3 {[%clk 0:03:01]}  Nc6 {[%clk 0:02:57]} 3. Bc4 {[%clk 0:03:01]}  Nf6 {[%clk 0:02:55]} 4. d3 {[%clk 0:03:01]}  h6 {[%clk 0:02:52]} 5. c3 {[%clk 0:02:58]}  d6 {[%clk 0:02:52]} 6. O-O {[%clk 0:02:57]}  g5 {[%clk 0:02:52]} 7. b4 {[%clk 0:02:30]}  Bg7 {[%clk 0:02:49]} 8. Nbd2 {[%clk 0:02:23]}  O-O {[%clk 0:02:48]} 9. h3 {[%clk 0:02:10]}  Ne7 {[%clk 0:02:40]} 10. Re1 {[%clk 0:02:09]}  Ng6 {[%clk 0:02:37]} 11. Nf1 {[%clk 0:02:09]}  d5 {[%clk 0:02:34]} 12. Bb3 {[%clk 0:02:03]}  dxe4 {[%clk 0:02:30]} 13. dxe4 {[%clk 0:02:03]}  Qxd1 {[%clk 0:02:30]} 14. Bxd1 {[%clk 0:02:03]}  Nf4 {[%clk 0:02:26]} 15. Bc2 {[%clk 0:01:49]}  Ne8 {[%clk 0:02:16]} 16. Ng3 {[%clk 0:01:47]}  Nd6 {[%clk 0:02:13]} 17. Nf5 {[%clk 0:01:43]}  Bxf5 {[%clk 0:01:38]} 18. exf5 {[%clk 0:01:43]}  e4 {[%clk 0:01:33]} 19. Nd4 {[%clk 0:01:33]}  Rfe8 {[%clk 0:01:34]} 20. Bxf4 {[%clk 0:00:57]}  gxf4 {[%clk 0:01:30]} 21. g4 {[%clk 0:00:47]}  Rac8 {[%clk 0:00:55]} 22. Bb3 {[%clk 0:00:35]}  c5 {[%clk 0:00:49]} 23. bxc5 {[%clk 0:00:32]}  Rxc5 {[%clk 0:00:50]} 24. Rad1 {[%clk 0:00:25]}  f3 {[%clk 0:00:32]} 25. Nxf3 {[%clk 0:00:23]}  exf3 {[%clk 0:00:31]} 26. Rxe8+ {[%clk 0:00:22]}  Nxe8 {[%clk 0:00:32]} 27. Rd8 {[%clk 0:00:22]}  Kf8 {[%clk 0:00:31]} 28. Ba4 {[%clk 0:00:22]}  Re5 {[%clk 0:00:29]} 0-1


[Site "https://www.chess.com"]

[Event "Titled Tuesday Blitz March 29 Early 2022"]
[White "Ilyasli, Ughur"]
[Black "Cramling Bellon, Anna"]
[WhiteFideId "13416197"]
[BlackFideId "32009232"]
[WhiteElo "2045"]
[BlackElo "1905"]
[Result "1-0"]
[Round "02"]
[TimeControl "180+1"]
[Date "2022.03.30"]
[WhiteClock "0:00:13"]
[BlackClock "0:00:02"]

1. d4 {[%clk 0:03:00]}  Nf6 {[%clk 0:02:57]} 2. c4 {[%clk 0:03:01]}  e6 {[%clk 0:02:56]} 3. Nc3 {[%clk 0:03:00]}  d5 {[%clk 0:02:56]} 4. Nf3 {[%clk 0:02:59]}  c6 {[%clk 0:02:55]} 5. e3 {[%clk 0:02:58]}  Be7 {[%clk 0:02:55]} 6. Bd3 {[%clk 0:02:53]}  O-O {[%clk 0:02:55]} 7. O-O {[%clk 0:02:53]}  dxc4 {[%clk 0:02:55]} 8. Bxc4 {[%clk 0:02:53]}  b5 {[%clk 0:02:55]} 9. Bd3 {[%clk 0:02:49]}  Bb7 {[%clk 0:02:54]} 10. Qe2 {[%clk 0:02:48]}  Nbd7 {[%clk 0:02:51]} 11. e4 {[%clk 0:02:44]}  g6 {[%clk 0:02:43]} 12. e5 {[%clk 0:02:44]}  Nd5 {[%clk 0:02:42]} 13. Nxd5 {[%clk 0:02:32]}  exd5 {[%clk 0:02:26]} 14. e6 {[%clk 0:02:28]}  fxe6 {[%clk 0:02:25]} 15. Qxe6+ {[%clk 0:02:26]}  Kg7 {[%clk 0:02:22]} 16. Re1 {[%clk 0:01:59]}  Bf6 {[%clk 0:02:10]} 17. Qh3 {[%clk 0:01:46]}  Re8 {[%clk 0:02:02]} 18. Bh6+ {[%clk 0:01:32]}  Kg8 {[%clk 0:01:58]} 19. Re6 {[%clk 0:01:22]}  Nf8 {[%clk 0:01:33]} 20. Rxe8 {[%clk 0:00:59]}  Qxe8 {[%clk 0:01:31]} 21. Re1 {[%clk 0:00:59]}  Qf7 {[%clk 0:01:25]} 22. Ne5 {[%clk 0:00:53]}  Bxe5 {[%clk 0:01:21]} 23. dxe5 {[%clk 0:00:54]}  Bc8 {[%clk 0:01:21]} 24. Qh4 {[%clk 0:00:41]}  Ne6 {[%clk 0:01:12]} 25. Re3 {[%clk 0:00:37]}  Ng7 {[%clk 0:00:24]} 26. Rf3 {[%clk 0:00:26]}  Qe8 {[%clk 0:00:16]} 27. Qf6 {[%clk 0:00:23]}  Ne6 {[%clk 0:00:06]} 28. Rg3 {[%clk 0:00:17]}  Bd7 {[%clk 0:00:05]} 29. h4 {[%clk 0:00:14]}  Qd8 {[%clk 0:00:04]} 30. Rxg6+ {[%clk 0:00:12]}  hxg6 {[%clk 0:00:03]} 31. Qxg6+ {[%clk 0:00:12]}  Kh8 {[%clk 0:00:02]} 32. Qh7# {[%clk 0:00:13]} 1-0


[Site "https://www.chess.com"]

[Event "Titled Tuesday Blitz March 29 Early 2022"]
[White "Jaferian, Koosha"]
[Black "Nan, M K Khine Hlyan"]
[WhiteFideId "12507440"]
[BlackFideId "13002899"]
[WhiteElo "2030"]
[BlackElo "1943"]
[Result "1-0"]
[Round "02"]
[TimeControl "180+1"]
[Date "2022.03.30"]
[WhiteClock "0:02:30"]
[BlackClock "0:01:04"]

1. Nf3 {[%clk 0:03:00]}  d5 {[%clk 0:02:50]} 2. b3 {[%clk 0:03:00]}  Nf6 {[%clk 0:02:49]} 3. Bb2 {[%clk 0:03:01]}  g6 {[%clk 0:02:43]} 4. g3 {[%clk 0:03:01]}  Bg7 {[%clk 0:02:42]} 5. c4 {[%clk 0:03:02]}  dxc4 {[%clk 0:02:38]} 6. bxc4 {[%clk 0:03:02]}  O-O {[%clk 0:02:37]} 7. d3 {[%clk 0:03:03]}  Nc6 {[%clk 0:02:36]} 8. Bg2 {[%clk 0:03:03]}  Bg4 {[%clk 0:02:31]} 9. O-O {[%clk 0:03:03]}  Rb8 {[%clk 0:02:26]} 10. Nbd2 {[%clk 0:03:02]}  e6 {[%clk 0:02:19]} 11. Rb1 {[%clk 0:03:01]}  b5 {[%clk 0:02:10]} 12. Qc2 {[%clk 0:02:49]}  b4 {[%clk 0:02:08]} 13. d4 {[%clk 0:02:41]}  a5 {[%clk 0:02:04]} 14. e4 {[%clk 0:02:40]}  Bxf3 {[%clk 0:01:57]} 15. Nxf3 {[%clk 0:02:40]}  a4 {[%clk 0:01:41]} 16. d5 {[%clk 0:02:40]}  a3 {[%clk 0:01:38]} 17. Bxf6 {[%clk 0:02:39]}  Bxf6 {[%clk 0:01:22]} 18. dxc6 {[%clk 0:02:39]}  Bb2 {[%clk 0:01:19]} 19. Rbd1 {[%clk 0:02:36]}  Qf6 {[%clk 0:01:18]} 20. Nd2 {[%clk 0:02:31]}  Rb6 {[%clk 0:01:14]} 21. Nb3 {[%clk 0:02:31]}  Rxc6 {[%clk 0:01:12]} 22. e5 {[%clk 0:02:31]}  Rxc4 {[%clk 0:01:06]} 23. Qxc4 {[%clk 0:02:30]}  Bxe5 {[%clk 0:01:04]} 24. Qxb4 {[%clk 0:02:30]} 1-0


[Site "https://www.chess.com"]

[Event "Titled Tuesday Blitz March 29 Early 2022"]
[White "Jumabayev, Rinat"]
[Black "Chen, Qi b"]
[WhiteFideId "13702661"]
[BlackFideId "8614733"]
[WhiteElo "2561"]
[BlackElo "2432"]
[Result "1-0"]
[Round "02"]
[TimeControl "180+1"]
[Date "2022.03.29"]
[WhiteClock "0:00:33"]
[BlackClock "0:00:01"]

1. d4 {[%clk 0:03:00]}  Nf6 {[%clk 0:02:59]} 2. c4 {[%clk 0:03:01]}  g6 {[%clk 0:02:55]} 3. Nf3 {[%clk 0:03:00]}  Bg7 {[%clk 0:02:54]} 4. g3 {[%clk 0:03:01]}  O-O {[%clk 0:02:54]} 5. Bg2 {[%clk 0:03:01]}  c6 {[%clk 0:02:50]} 6. O-O {[%clk 0:02:59]}  d5 {[%clk 0:02:51]} 7. Qb3 {[%clk 0:02:59]}  a5 {[%clk 0:02:50]} 8. cxd5 {[%clk 0:02:50]}  a4 {[%clk 0:02:50]} 9. Qd1 {[%clk 0:02:51]}  cxd5 {[%clk 0:02:50]} 10. Nc3 {[%clk 0:02:48]}  a3 {[%clk 0:02:48]} 11. bxa3 {[%clk 0:02:47]}  Ne4 {[%clk 0:02:49]} 12. Qb3 {[%clk 0:02:27]}  Nc6 {[%clk 0:02:29]} 13. Nb5 {[%clk 0:02:09]}  Na5 {[%clk 0:01:57]} 14. Qb4 {[%clk 0:02:04]}  Nc4 {[%clk 0:01:55]} 15. Ng5 {[%clk 0:01:54]}  Nf6 {[%clk 0:00:41]} 16. Bf4 {[%clk 0:01:31]}  Bd7 {[%clk 0:00:41]} 17. Nc7 {[%clk 0:01:23]}  Rxa3 {[%clk 0:00:30]} 18. Nxd5 {[%clk 0:01:18]}  Nxd5 {[%clk 0:00:27]} 19. Bxd5 {[%clk 0:01:16]}  Ra4 {[%clk 0:00:27]} 20. Qxb7 {[%clk 0:01:15]}  e6 {[%clk 0:00:21]} 21. Bg2 {[%clk 0:01:07]}  Bxd4 {[%clk 0:00:14]} 22. Rad1 {[%clk 0:01:07]}  e5 {[%clk 0:00:13]} 23. Bc1 {[%clk 0:00:51]}  Qc8 {[%clk 0:00:06]} 24. Qxc8 {[%clk 0:00:46]}  Bxc8 {[%clk 0:00:06]} 25. Nf3 {[%clk 0:00:41]}  Ba7 {[%clk 0:00:05]} 26. Bh6 {[%clk 0:00:34]}  Re8 {[%clk 0:00:05]} 27. Ng5 {[%clk 0:00:34]}  Bf5 {[%clk 0:00:01]} 28. Bc6 {[%clk 0:00:33]} 1-0


[Site "https://www.chess.com"]